fUST/lending_fUST_20250715
["ID","MTS","AMOUNT","RATE_DAILY","PERIOD"]
[372247709,1752562236266,-1224.57808643,0.00020078,2]
[372247710,1752562236276,-9897.97505474,0.00020107,2]
[372247711,1752562236286,-864.31156983,0.00020117,2]
[372247712,1752562236295,-899.21,0.00020172,2]
[372247713,1752562236305,-500.0,0.00020186,2]
[372247714,1752562236314,-500.0,0.00020186,2]
[372247715,1752562236324,-500.0,0.00020186,2]
[372247716,1752562236333,-460.0,0.00020194,2]
[372247717,1752562236343,-460.0,0.00020194,2]
[372247718,1752562236353,-564.46,0.00020194,2]
[372247719,1752562236362,-632.47,0.00020194,2]
[372247720,1752562236372,-3532.72,0.00020194,2]
[372247721,1752562236382,-460.0,0.00020194,2]
[372247722,1752562236391,-460.0,0.00020194,2]
[372247723,1752562236400,-5786.89,0.00020194,2]
[372247724,1752562236410,-460.0,0.00020195,2]
[372247725,1752562236419,-464.57138435,0.00020195,2]
[372247726,1752562236429,-466.39004785,0.00020195,2]
[372247727,1752562236438,-460.0,0.00020195,2]
[372247728,1752562236448,-4811.36,0.00020195,2]
[372247729,1752562236459,-460.0,0.00020195,2]
[372247730,1752562236472,-1071.41,0.00020195,2]
[372247731,1752562236481,-2535.92,0.00020195,2]
[372247732,1752562236491,-658.22,0.00020195,2]
[372247733,1752562236501,-3527.94,0.00020195,2]
[372247734,1752562236510,-692.45,0.00020195,2]
[372247735,1752562236520,-460.0,0.00020195,2]
[372247736,1752562236530,-463.25,0.00020195,2]
[372247737,1752562236540,-810.61,0.00020195,2]
[372247738,1752562236550,-2370.09,0.00020195,2]
[372247739,1752562236559,-460.0,0.00020195,2]
[372247740,1752562236568,-509.93,0.00020195,2]
[372247741,1752562236578,-819.58,0.00020195,2]
[372247742,1752562236588,-874.96,0.00020195,2]
[372247743,1752562236598,-460.0,0.00020195,2]
[372247744,1752562236608,-460.0,0.00020195,2]
[372247745,1752562236617,-460.0,0.00020195,2]
[372247746,1752562236627,-460.0,0.00020195,2]
[372247747,1752562236637,-977.84,0.00020195,2]
[372247748,1752562236646,-460.0,0.00020196,2]
[372247749,1752562236656,-460.0,0.00020196,2]
[372247750,1752562236670,-460.0,0.00020196,2]
[372247751,1752562236680,-460.0,0.00020196,2]
[372247752,1752562236690,-460.0,0.00020196,2]
[372247753,1752562236700,-460.0,0.00020196,2]
[372247754,1752562236711,-500.0,0.00020196,2]
[372247755,1752562236721,-460.0,0.00020196,2]
[372247756,1752562236731,-568.66,0.00020196,2]
[372247757,1752562236741,-460.0,0.00020196,2]
[372247758,1752562236751,-618.74,0.00020196,2]
[372247759,1752562236761,-460.0,0.00020196,2]
[372247760,1752562236771,-885.58,0.00020196,2]
[372247761,1752562236781,-720.55,0.00020196,2]
[372247762,1752562236791,-1057.22,0.00020196,2]
[372247763,1752562236801,-1390.35,0.00020196,2]
[372247764,1752562236811,-320.0,0.00020196,2]
[372247765,1752562236821,-722.11,0.00020196,2]
[372247766,1752562236830,-451.37927437,0.00020196,2]
[372247767,1752562236840,-899.21,0.00020196,2]
[372247768,1752562236850,-808.59,0.00020196,2]
[372247769,1752562236860,-888.08,0.00020196,2]
[372247770,1752562236870,-460.0,0.00020196,2]
[372247771,1752562236880,-460.0,0.00020196,2]
[372247772,1752562236889,-1059.82,0.00020196,2]
[372247773,1752562236899,-460.0,0.00020196,2]
[372247774,1752562236908,-875.06,0.00020196,2]
[372247775,1752562236918,-826.33,0.00020196,2]
[372247776,1752562236927,-460.0,0.00020196,2]
[372247777,1752562236937,-581.02,0.00020196,2]
[372247778,1752562236946,-380.00117322,0.00020196,2]
[372247779,1752562236956,-460.0,0.00020197,2]
[372247780,1752562236967,-460.0,0.00020197,2]
[372247781,1752562236977,-460.0,0.00020197,2]
[372247782,1752562236986,-509.047582,0.00020197,2]
[372247783,1752562236995,-460.0,0.00020197,2]
[372247784,1752562237005,-6716.04,0.00020197,2]
[372247785,1752562237014,-1559.66,0.00020197,2]
[372247786,1752562237025,-1136.82,0.00020197,2]
[372247787,1752562237035,-874.61,0.00020197,2]
[372247788,1752562237044,-2386.42,0.00020197,2]
[372247789,1752562237053,-415.29628757,0.00020197,2]
[372247790,1752562237063,-562.3,0.00020197,2]
[372247791,1752562237073,-955.93,0.00020197,2]
[372247792,1752562237082,-3601.14,0.00020197,2]
[372247793,1752562237092,-604.75,0.00020197,2]
[372247794,1752562237102,-1761.32,0.00020197,2]
[372247795,1752562237111,-2352.52,0.00020197,2]
[372247796,1752562237120,-500.0,0.00020272,2]
[372247797,1752562237131,-500.0,0.00020272,2]
[372247798,1752562237140,-899.21,0.00020272,2]
[372247799,1752562237150,-899.21,0.00020272,2]
[372247800,1752562237159,-460.0,0.00020273,2]
[372247801,1752562237175,-460.0,0.00020273,2]
[372247802,1752562237184,-460.0,0.00020273,2]
[372247803,1752562237194,-460.0,0.00020273,2]
[372247804,1752562237203,-460.0,0.00020273,2]
[372247805,1752562237215,-202.82789587,0.00020273,2]
[372247806,1752562237225,-460.0,0.00020273,2]
[372247807,1752562237235,-460.0,0.00020273,2]
[372247808,1752562237244,-876.73,0.00020273,2]
[372247809,1752562237254,-601.14,0.00020273,2]
[372247810,1752562237263,-460.0,0.00020273,2]
[372247811,1752562237273,-460.0,0.00020273,2]
[372247812,1752562237282,-530.91,0.00020273,2]
[372247813,1752562237292,-460.0,0.00020273,2]
[372247814,1752562237301,-476.27948072,0.00020273,2]
[372247815,1752562237310,-460.0,0.00020273,2]
[372247816,1752562237320,-859.4,0.00020273,2]
[372247817,1752562237330,-460.0,0.00020273,2]
[372247818,1752562237339,-460.0,0.00020273,2]
[372247819,1752562237348,-460.0,0.00020273,2]
[372247820,1752562237358,-151.46172895,0.00020273,2]
[372247821,1752562237368,-460.0,0.00020273,2]
[372247822,1752562237378,-460.0,0.00020273,2]
[372247823,1752562237388,-460.0,0.00020273,2]
[372247824,1752562237398,-468.50037143,0.00020273,2]
[372247825,1752562237407,-1167.82,0.00020273,2]
[372247826,1752562237417,-700.69,0.00020273,2]
[372247827,1752562237426,-941.73,0.00020273,2]
[372247828,1752562237435,-5746.08,0.00020273,2]
[372247829,1752562237445,-389.02182787,0.00020273,2]
[372247830,1752562237455,-460.0,0.00020273,2]
[372247831,1752562237466,-460.0,0.00020273,2]
[372247832,1752562237476,-467.97520851,0.00020273,2]
[372247833,1752562237485,-335.27262148,0.00020273,2]
[372247834,1752562237495,-460.0,0.00020273,2]
[372247835,1752562237504,-2477.79,0.00020273,2]
[372247836,1752562237514,-460.0,0.00020273,2]
[372247837,1752562237523,-349.13235178,0.00020273,2]
[372247838,1752562237532,-460.0,0.00020273,2]
[372247839,1752562237542,-249.66,0.00020273,2]
[372247840,1752562237551,-460.0,0.00020273,2]
[372247841,1752562237560,-160.0,0.00020314,3]
[372247842,1752562237570,-214.37129034,0.00020314,3]
[372247844,1752562237579,-9897.97505474,0.00020314,3]
[372247845,1752562237589,-160.0,0.00020314,3]
[372247846,1752562237598,-464.22433652,0.00020334,2]
[372247847,1752562237608,-460.0,0.00020334,2]
[372247848,1752562237617,-497.93,0.00020334,2]
[372247849,1752562237627,-460.0,0.00020334,2]
[372247850,1752562237636,-460.0,0.00020334,2]
[372247851,1752562237646,-460.0,0.00020334,2]
[372247852,1752562237656,-636.48,0.00020334,2]
[372247853,1752562237672,-460.0,0.00020334,2]
[372247854,1752562237682,-500.0,0.00020335,2]
[372247855,1752562237692,-899.21,0.00020335,2]
[372247856,1752562237703,-500.0,0.00020444,2]
[372247857,1752562237713,-899.21,0.00020444,2]
[372247858,1752562237723,-899.21,0.00020444,2]
[372247859,1752562237733,-899.21,0.00020444,2]
[372247860,1752562237743,-899.21,0.00020444,2]
[372247861,1752562237752,-899.29,0.00020444,2]
[372247862,1752562237766,-500.0,0.00020445,2]
[372247863,1752562237776,-500.0,0.00020445,2]
[372247864,1752562237785,-460.88885659,0.00020446,2]
[372247865,1752562237795,-461.35746991,0.00020446,2]
[372247866,1752562237805,-460.0,0.00020446,2]
[372247867,1752562237815,-338.18012028,0.00020446,2]
[372247868,1752562237827,-460.0,0.00020446,2]
[372247869,1752562237839,-461.45718206,0.00020446,2]
[372247870,1752562237850,-460.0,0.00020446,2]
[372247871,1752562237859,-423.67118016,0.00020446,2]
[372247872,1752562237868,-460.0,0.00020468,2]
[372247873,1752562237879,-504.3,0.00020468,2]
[372247874,1752562237888,-564.46,0.00020468,2]
[372247875,1752562237898,-632.47,0.00020468,2]
[372247876,1752562237908,-3532.72,0.00020468,2]
[372247877,1752562237917,-460.0,0.00020468,2]
[372247878,1752562237927,-460.0,0.00020468,2]
[372247879,1752562237937,-5786.89,0.00020468,2]
[372247880,1752562237947,-460.0,0.00020469,2]
[372247881,1752562237958,-460.0,0.00020469,2]
[372247882,1752562237968,-4811.36,0.00020469,2]
[372247883,1752562237978,-460.0,0.00020469,2]
[372247884,1752562237988,-1071.41,0.00020469,2]
[372247885,1752562237998,-2535.92,0.00020469,2]
[372247886,1752562238007,-658.22,0.00020469,2]
[372247887,1752562238017,-3527.94,0.00020469,2]
[372247888,1752562238026,-692.45,0.00020469,2]
[372247889,1752562238036,-460.0,0.00020469,2]
[372247890,1752562238045,-463.25,0.00020469,2]
[372247891,1752562238142,-810.61,0.00020469,2]
[372247892,1752562238153,-1224.57808643,0.00020469,2]
[372247893,1752562238162,-2370.09,0.00020469,2]
[372247894,1752562238171,-234.20764597,0.00020469,2]
[372247895,1752562238181,-509.93,0.00020469,2]
[372247896,1752562238191,-819.58,0.00020469,2]
[372247897,1752562238200,-874.96,0.00020469,2]
[372247898,1752562238210,-460.0,0.00020469,2]
[372247899,1752562238220,-460.0,0.00020469,2]
[372247900,1752562238230,-460.0,0.00020469,2]
[372247901,1752562238240,-460.0,0.00020469,2]
[372247902,1752562238250,-977.84,0.00020469,2]
[372247903,1752562238259,-460.0,0.0002047,2]
[372247904,1752562238269,-358.65009087,0.0002047,2]
[372247905,1752562238278,-460.0,0.0002047,2]
[372247906,1752562238288,-460.0,0.0002047,2]
[372247907,1752562238298,-460.0,0.0002047,2]
[372247908,1752562238307,-460.0,0.0002047,2]
[372247909,1752562238316,-568.66,0.0002047,2]
[372247910,1752562238326,-460.0,0.0002047,2]
[372247911,1752562238336,-618.74,0.0002047,2]
[372247912,1752562238346,-460.0,0.0002047,2]
[372247913,1752562238355,-885.58,0.0002047,2]
[372247914,1752562238365,-720.55,0.0002047,2]
[372247915,1752562238374,-1057.22,0.0002047,2]
[372247916,1752562238384,-1390.35,0.0002047,2]
[372247917,1752562238394,-722.11,0.0002047,2]
[372247918,1752562238403,-808.59,0.0002047,2]
[372247919,1752562238413,-888.08,0.0002047,2]
[372247920,1752562238423,-460.0,0.0002047,2]
[372247921,1752562238432,-460.0,0.0002047,2]
[372247922,1752562238442,-1059.82,0.0002047,2]
[372247923,1752562238452,-460.0,0.0002047,2]
[372247924,1752562238462,-875.06,0.0002047,2]
[372247925,1752562238471,-826.33,0.0002047,2]
[372247926,1752562238480,-448.65584627,0.0002047,2]
[372247927,1752562238490,-581.02,0.0002047,2]
[372247928,1752562238499,-460.0,0.00020471,2]
[372247929,1752562238508,-460.0,0.00020471,2]
[372247930,1752562238518,-399.57462362,0.00020471,2]
[372247931,1752562238527,-460.0,0.00020471,2]
[372247932,1752562238537,-6716.04,0.00020471,2]
[372247933,1752562238547,-1559.66,0.00020471,2]
[372247934,1752562238557,-1136.82,0.00020471,2]
[372247935,1752562238566,-874.61,0.00020471,2]
[372247936,1752562238576,-2386.42,0.00020471,2]
[372247937,1752562238586,-562.3,0.00020471,2]
[372247938,1752562238595,-955.93,0.00020471,2]
[372247939,1752562238605,-3601.14,0.00020471,2]
[372247940,1752562238615,-604.75,0.00020471,2]
[372247941,1752562238624,-1761.32,0.00020471,2]
[372247942,1752562238634,-2352.52,0.00020471,2]
[372247943,1752562238644,-500.0,0.00020498,2]
[372247944,1752562238653,-500.0,0.00020498,2]
[372247945,1752562238666,-610.5,0.00020498,2]
[372247946,1752562238676,-9897.97505474,0.00020521,3]
[372247947,1752562238686,-582.30568966,0.00020546,2]
[372247948,1752562238695,-460.0,0.00020546,2]
[372247949,1752562238707,-460.0,0.00020547,2]
[372247950,1752562238716,-460.0,0.00020547,2]
[372247951,1752562238726,-473.94054491,0.00020547,2]
[372247952,1752562238736,-460.0,0.00020547,2]
[372247953,1752562238746,-460.0,0.00020547,2]
[372247954,1752562238756,-460.0,0.00020547,2]
[372247955,1752562238766,-460.0,0.00020547,2]
[372247956,1752562238776,-876.73,0.00020547,2]
[372247957,1752562238789,-601.14,0.00020547,2]
[372247958,1752562238799,-460.0,0.00020547,2]
[372247959,1752562238809,-530.91,0.00020547,2]
[372247960,1752562238819,-460.0,0.00020547,2]
[372247961,1752562238829,-859.4,0.00020547,2]
[372247962,1752562238838,-460.0,0.00020547,2]
[372247963,1752562238848,-460.0,0.00020547,2]
[372247964,1752562238858,-460.0,0.00020547,2]
[372247965,1752562238867,-460.0,0.00020547,2]
[372247966,1752562238876,-460.0,0.00020547,2]
[372247967,1752562238887,-460.0,0.00020547,2]
[372247968,1752562238897,-1167.82,0.00020547,2]
[372247969,1752562238907,-700.69,0.00020547,2]
[372247970,1752562238917,-941.73,0.00020547,2]
[372247971,1752562238926,-5746.08,0.00020547,2]
[372247972,1752562238936,-460.0,0.00020547,2]
[372247973,1752562238946,-220.50658624,0.00020547,2]
[372247974,1752562238956,-460.0,0.00020547,2]
[372247975,1752562238967,-2477.79,0.00020547,2]
[372247976,1752562238976,-281.03575484,0.00020547,2]
[372247977,1752562238986,-471.46,0.00020547,2]
[372247978,1752562238996,-460.0,0.00020547,2]
[372247979,1752562239006,-502.93465855,0.00020573,2]
[372247980,1752562239015,-505.93026217,0.00020573,2]
[372247981,1752562239024,-504.52302474,0.00020573,2]
[372247982,1752562239034,-500.0,0.00020573,2]
[372247983,1752562239043,-502.04775516,0.00020573,2]
[372247984,1752562239053,-500.0,0.00020573,2]
[372247985,1752562239063,-500.0,0.00020573,2]
[372247986,1752562239073,-501.9224531,0.00020573,2]
[372247987,1752562239084,-501.0937175,0.00020573,2]
[372247988,1752562239094,-503.4940126,0.00020573,2]
[372247989,1752562239103,-616.23689196,0.00020573,2]
[372247990,1752562239114,-189.06793322,0.00020573,2]
[372247991,1752562239124,-513.86107393,0.00020573,2]
[372247992,1752562239134,-500.0,0.00020573,2]
[372247993,1752562239144,-500.0,0.00020573,2]
[372247994,1752562239153,-500.0,0.00020573,2]
[372247995,1752562239163,-502.47566828,0.00020573,2]
[372247996,1752562239173,-493.8414142,0.00020573,2]
[372247997,1752562239183,-500.0,0.00020573,2]
[372247998,1752562239192,-502.57662579,0.00020573,2]
[372247999,1752562239202,-489.17164816,0.00020579,2]
[372248000,1752562239212,-260.510826,0.0002058,15]
[372248001,1752562239223,-151.0,0.000206,4]
[372248002,1752562239233,-499.54958219,0.00020608,2]
[372248003,1752562239242,-497.93,0.00020608,2]
[372248004,1752562239251,-460.0,0.00020608,2]
[372248005,1752562239261,-460.0,0.00020608,2]
[372248006,1752562239271,-460.0,0.00020608,2]
[372248007,1752562239281,-636.48,0.00020608,2]
[372248008,1752562239290,-460.0,0.00020608,2]
[372248009,1752562239300,-151.0,0.000207,3]
[372248010,1752562239309,-460.0,0.0002072,2]
[372248011,1752562239319,-614.17930315,0.00020728,3]
[372248025,1752562239499,-9283.79575159,0.00020728,3]
[372248026,1752562239508,-1006.95976824,0.00020734,2]
[372248029,1752562239518,-1000.0,0.00020734,2]
[372248031,1752562239528,-250.57674173,0.00020734,2]
[372248034,1752562239541,-749.42325827,0.00020734,2]
[372248036,1752562239551,-460.0,0.00020742,2]
[372248038,1752562239560,-209.5008958,0.00020742,2]
[372248040,1752562239571,-564.46,0.00020742,2]
[372248042,1752562239580,-632.47,0.00020742,2]
[372248044,1752562239590,-2303.04236122,0.00020742,2]
[372248046,1752562239605,-373.76122014,0.00020742,2]
[372248167,1752562240615,-150.0,0.00018134,2]
[372248169,1752562240624,-460.0,0.00019373,2]
[372248171,1752562240633,-460.0,0.00019373,2]
[372248173,1752562240642,-461.22862324,0.00019373,2]
[372248175,1752562240652,-463.27515092,0.00019373,2]
[372248177,1752562240663,-460.0,0.00019374,2]
[372248179,1752562240673,-460.0,0.00019647,2]
[372248181,1752562240682,-460.0,0.00019647,2]
[372248183,1752562240692,-460.0,0.00019648,2]
[372248185,1752562240703,-168.96415465,0.00019921,2]
[372248187,1752562240715,-291.03584535,0.00019921,2]
[372248189,1752562240724,-460.0,0.00019921,2]
[372248191,1752562240734,-460.0,0.00019922,2]
[372248193,1752562240745,-3426.39592199,0.0001999,2]
[372248291,1752562241810,-585.7,0.00019375,2]
[372248292,1752562241820,-22836.95982298,0.0001999,2]
[372248293,1752562241829,-460.0,0.00019999,2]
[372248294,1752562241838,-460.0,0.00020195,2]
[372248295,1752562241848,-460.0,0.00020195,2]
[372248296,1752562241857,-460.0,0.00020196,2]
[372248297,1752562241866,-460.0,0.00020196,2]
[372248298,1752562241875,-521.40262785,0.00020469,2]
[372248299,1752562241885,-460.0,0.0002047,2]
[372248300,1752562241894,-460.0,0.0002047,2]
[372248301,1752562241903,-855.91641864,0.00020742,2]
[372248302,1752562241912,-460.0,0.00020742,2]
[372248303,1752562241921,-460.0,0.00020742,2]
[372248304,1752562241931,-5786.89,0.00020742,2]
[372248305,1752562241940,-194.49569457,0.00020743,2]
[372248306,1752562241950,-4811.36,0.00020743,2]
[372248307,1752562241960,-460.0,0.00020743,2]
[372248308,1752562241970,-1071.41,0.00020743,2]
[372248309,1752562241980,-2535.92,0.00020743,2]
[372248311,1752562241990,-658.22,0.00020743,2]
[372248313,1752562241999,-3527.94,0.00020743,2]
[372248315,1752562242009,-692.45,0.00020743,2]
[372248317,1752562242019,-460.0,0.00020743,2]
[372248319,1752562242028,-463.25,0.00020743,2]
[372248321,1752562242037,-810.61,0.00020743,2]
[372248322,1752562242047,-2370.09,0.00020743,2]
[372248325,1752562242056,-509.93,0.00020743,2]
[372248326,1752562242066,-819.58,0.00020743,2]
[372248328,1752562242075,-874.96,0.00020743,2]
[372248330,1752562242084,-460.0,0.00020743,2]
[372248332,1752562242094,-460.0,0.00020743,2]
[372248334,1752562242103,-460.0,0.00020743,2]
[372248336,1752562242113,-460.0,0.00020743,2]
[372248338,1752562242122,-977.84,0.00020743,2]
[372248340,1752562242131,-460.0,0.00020744,2]
[372248342,1752562242141,-460.0,0.00020744,2]
[372248345,1752562242151,-460.0,0.00020744,2]
[372248347,1752562242160,-460.0,0.00020744,2]
[372248349,1752562242170,-460.0,0.00020744,2]
[372248350,1752562242180,-568.66,0.00020744,2]
[372248352,1752562242189,-460.0,0.00020744,2]
[372248355,1752562242201,-618.74,0.00020744,2]
[372248358,1752562242219,-425.48832527,0.00020744,2]
[372248360,1752562242234,-885.58,0.00020744,2]
[372248363,1752562242248,-720.55,0.00020744,2]
[372248365,1752562242263,-1057.22,0.00020744,2]
[372248367,1752562242278,-1390.35,0.00020744,2]
[372248370,1752562242293,-722.11,0.00020744,2]
[372248372,1752562242308,-808.59,0.00020744,2]
[372248375,1752562242324,-888.08,0.00020744,2]
[372248377,1752562242337,-460.0,0.00020744,2]
[372248380,1752562242351,-460.0,0.00020744,2]
[372248382,1752562242366,-1059.82,0.00020744,2]
[372248385,1752562242381,-460.0,0.00020744,2]
[372248387,1752562242393,-875.06,0.00020744,2]
[372248390,1752562242407,-826.33,0.00020744,2]
[372248392,1752562242421,-581.02,0.00020744,2]
[372248395,1752562242437,-460.0,0.00020744,2]
[372248397,1752562242452,-460.0,0.00020744,2]
[372248400,1752562242469,-460.0,0.00020745,2]
[372248403,1752562242484,-460.0,0.00020745,2]
[372248405,1752562242495,-6716.04,0.00020745,2]
[372248407,1752562242506,-1559.66,0.00020745,2]
[372248410,1752562242523,-1136.82,0.00020745,2]
[372248412,1752562242536,-874.61,0.00020745,2]
[372248415,1752562242548,-2386.42,0.00020745,2]
[372248417,1752562242560,-562.3,0.00020745,2]
[372248420,1752562242577,-955.93,0.00020745,2]
[372248422,1752562242589,-3601.14,0.00020745,2]
[372248425,1752562242601,-604.75,0.00020745,2]
[372248430,1752562242615,-1761.32,0.00020745,2]
[372248432,1752562242628,-2352.52,0.00020745,2]
[372248434,1752562242640,-1910.0,0.00020787,2]
[372248438,1752562242653,-460.0,0.00020821,2]
[372248441,1752562242666,-460.0,0.00020821,2]
[372248446,1752562242679,-501.23742626,0.00020821,2]
[372248449,1752562242692,-876.73,0.00020821,2]
[372248453,1752562242705,-601.14,0.00020821,2]
[372248455,1752562242718,-460.0,0.00020821,2]
[372248458,1752562242730,-530.91,0.00020821,2]
[372248461,1752562242744,-460.0,0.00020821,2]
[372248463,1752562242757,-859.4,0.00020821,2]
[372248466,1752562242769,-460.0,0.00020821,2]
[372248469,1752562242783,-460.0,0.00020821,2]
[372248471,1752562242795,-460.0,0.00020821,2]
[372248473,1752562242808,-460.0,0.00020821,2]
[372248476,1752562242821,-460.0,0.00020821,2]
[372248478,1752562242834,-460.0,0.00020821,2]
[372248480,1752562242847,-700.69,0.00020821,2]
[372248483,1752562242859,-941.73,0.00020821,2]
[372248485,1752562242871,-5746.08,0.00020821,2]
[372248487,1752562242883,-460.0,0.00020821,2]
[372248489,1752562242895,-460.0,0.00020821,2]
[372248492,1752562242907,-2477.79,0.00020821,2]
[372248494,1752562242919,-460.0,0.00020821,2]
[372248496,1752562242932,-160.0,0.0002086,2]
[372248498,1752562242944,-1224.57808643,0.00020861,2]
[372248501,1752562242956,-951.4586649,0.00020861,2]
[372248503,1752562242972,-207.4,0.00020868,2]
[372248505,1752562242984,-151.0,0.00020868,2]
[372248507,1752562242993,-151.0,0.00020868,2]
[372248509,1752562243002,-151.0,0.00020868,2]
[372248511,1752562243012,-151.0,0.00020868,2]
[372248513,1752562243022,-151.0,0.00020868,2]
[372248515,1752562243031,-500.0,0.00020868,2]
[372248517,1752562243040,-500.0,0.00020868,2]
[372248519,1752562243050,-500.0,0.00020868,2]
[372248521,1752562243059,-500.0,0.00020868,2]
[372248523,1752562243068,-500.0,0.00020868,2]
[372248525,1752562243078,-500.0,0.00020868,2]
[372248527,1752562243087,-500.0,0.00020868,2]
[372248529,1752562243097,-500.0,0.00020868,2]
[372248531,1752562243107,-500.0,0.00020868,2]
[372248533,1752562243116,-500.0,0.00020868,2]
[372248535,1752562243125,-500.0,0.00020868,2]
[372248537,1752562243134,-500.0,0.00020868,2]
[372248539,1752562243144,-25000.0,0.00020868,2]
[372248541,1752562243153,-500.0,0.00020868,2]
[372248559,1752562243326,-500.0,0.00020868,2]
[372248562,1752562243345,-500.0,0.00020868,2]
[372248564,1752562243358,-500.0,0.00020868,2]
[372248566,1752562243367,-500.0,0.00020868,2]
[372248568,1752562243377,-497.93,0.00020882,2]
[372248570,1752562243386,-460.0,0.00020882,2]
[372248571,1752562243395,-460.0,0.00020882,2]
[372248572,1752562243404,-460.0,0.00020882,2]
[372248573,1752562243414,-636.48,0.00020882,2]
[372248574,1752562243423,-460.0,0.00020882,2]
[372248575,1752562243432,-151.0,0.000209,3]
[372248576,1752562243442,-1670.89705688,0.000209,4]
[372248577,1752562243450,-160.0,0.00020955,2]
[372248578,1752562243459,-160.0,0.00020955,2]
[372248579,1752562243470,-160.0,0.00020955,2]
[372248580,1752562243480,-160.0,0.00020955,2]
[372248581,1752562243489,-12603.13032295,0.00020958,2]
[372248583,1752562243499,-160.0,0.00020958,2]
[372248584,1752562243508,-468.75,0.00020958,2]
[372248586,1752562243518,-864.31156983,0.00020961,2]
[372248588,1752562243527,-168.0,0.00020963,2]
[372248590,1752562243536,-460.0,0.00020994,2]
[372248592,1752562243546,-151.0,0.00021,2]
[372248594,1752562243555,-151.0,0.00021,2]
[372248596,1752562243564,-151.0,0.00021,2]
[372248598,1752562243573,-169.95868,0.00021,2]
[372248600,1752562243583,-169.95868,0.00021,2]
[372248602,1752562243592,-166.790333,0.00021,2]
[372248604,1752562243601,-166.790333,0.00021,2]
[372248606,1752562243611,-460.0,0.00021016,2]
[372248608,1752562243620,-564.46,0.00021016,2]
[372248610,1752562243630,-632.47,0.00021016,2]
[372248612,1752562243641,-3532.72,0.00021016,2]
[372248614,1752562243650,-460.0,0.00021016,2]
[372248616,1752562243659,-460.0,0.00021016,2]
[372248618,1752562243673,-5786.89,0.00021016,2]
[372248620,1752562243682,-4811.36,0.00021017,2]
[372248622,1752562243692,-460.0,0.00021017,2]
[372248624,1752562243701,-1071.41,0.00021017,2]
[372248626,1752562243712,-2535.92,0.00021017,2]
[372248627,1752562243722,-658.22,0.00021017,2]
[372248629,1752562243732,-3527.94,0.00021017,2]
[372248631,1752562243742,-692.45,0.00021017,2]
[372248634,1752562243752,-460.0,0.00021017,2]
[372248636,1752562243762,-463.25,0.00021017,2]
[372248637,1752562243771,-810.61,0.00021017,2]
[372248640,1752562243781,-2370.09,0.00021017,2]
[372248641,1752562243790,-509.93,0.00021017,2]
[372248643,1752562243800,-819.58,0.00021017,2]
[372248645,1752562243809,-874.96,0.00021017,2]
[372248647,1752562243818,-460.0,0.00021017,2]
[372248649,1752562243829,-460.0,0.00021017,2]
[372248651,1752562243838,-460.0,0.00021017,2]
[372248653,1752562243847,-977.84,0.00021017,2]
[372248655,1752562243856,-460.0,0.00021018,2]